Body,Body Name,Date,TransNo,Amount � (Excl VAT),Supplier name,Description,Expense Area,Expense Type,Expense Code
http://statistics.data.gov.uk/id/local-authority/00BF,London Borough of Sutton,23/05/2017,1238425,37.04, SAINSBURYS TO YOU 0052,ONLINE GROCERIES,Peoples Services Directorate,Provisions - General,F150
http://statistics.data.gov.uk/id/local-authority/00BF,London Borough of Sutton,08/05/2017,1238425,66.52, SAINSBURYS TO YOU 0038,ONLINE GROCERIES,Peoples Services Directorate,Provisions - General,F150
http://statistics.data.gov.uk/id/local-authority/00BF,London Borough of Sutton,03/05/2017,1238425,6.33, SAINSBURYS 2006,IN STORE GROCERIES,Peoples Services Directorate,Provisions - General,F150
http://statistics.data.gov.uk/id/local-authority/00BF,London Borough of Sutton,25/04/2017,1238424,40.75, SAINSBURYS TO YOU 0052,ONLINE GROCERIES,Peoples Services Directorate,Provisions - General,F150
http://statistics.data.gov.uk/id/local-authority/00BF,London Borough of Sutton,18/04/2017,1238424,29.46, SAINSBURYS TO YOU 0052,SAINSBURYS GROCERIES,Peoples Services Directorate,Provisions - General,F150
http://statistics.data.gov.uk/id/local-authority/00BF,London Borough of Sutton,10/04/2017,1238424,48.67, SAINSBURYS TO YOU 0052,SAINSBURYS GROCERIES,Peoples Services Directorate,Provisions - General,F150
http://statistics.data.gov.uk/id/local-authority/00BF,London Borough of Sutton,03/04/2017,1238424,59.5, SAINSBURYS TO YOU 0052,SAINSBURYS GROCERIES,Peoples Services Directorate,Provisions - General,F150
http://statistics.data.gov.uk/id/local-authority/00BF,London Borough of Sutton,22/05/2017,1238425,40.42, SAINSBURYS TO YOU 0038,ONLINE GROCERIES,Peoples Services Directorate,Refreshments,F155
http://statistics.data.gov.uk/id/local-authority/00BF,London Borough of Sutton,16/05/2017,1238425,8.36, ASDA SUPERSTORE,IN STORE GROCERIES,Peoples Services Directorate,Refreshments,F155
http://statistics.data.gov.uk/id/local-authority/00BF,London Borough of Sutton,08/05/2017,1238425,58.21, SAINSBURYS TO YOU 0052,ONLINE GROCERIES,Peoples Services Directorate,Refreshments,F155
http://statistics.data.gov.uk/id/local-authority/00BF,London Borough of Sutton,24/04/2017,1238424,61.11, SAINSBURYS TO YOU 0038,SAINSBURYS GROCERIES,Peoples Services Directorate,Refreshments,F155
http://statistics.data.gov.uk/id/local-authority/00BF,London Borough of Sutton,18/04/2017,1238424,27.92, SAINSBURYS TO YOU 0038,SAINSBURYS GROCERIES,Peoples Services Directorate,Refreshments,F155
http://statistics.data.gov.uk/id/local-authority/00BF,London Borough of Sutton,27/03/2017,1238424,39.27, SAINSBURYS TO YOU 0038,SAINSBURYS SHOPPING,Peoples Services Directorate,Refreshments,F155
http://statistics.data.gov.uk/id/local-authority/00BF,London Borough of Sutton,27/03/2017,1238424,48.25, SAINSBURYS TO YOU 0052,SAINSBURYS GROCERIES,Peoples Services Directorate,Refreshments,F155
http://statistics.data.gov.uk/id/local-authority/00BF,London Borough of Sutton,27/03/2017,1238424,-17.3, SAINSBURYS TO YOU 0038,SAINSBURYS SHOPPING,Peoples Services Directorate,Refreshments,F155
http://statistics.data.gov.uk/id/local-authority/00BF,London Borough of Sutton,06/05/2017,1238425,20, OYSTER BUS AUTOTOP,TOP UP FOR STAFF OYSTER CARD,Peoples Services Directorate,Travelling and Subsistence Allowances,A530
http://statistics.data.gov.uk/id/local-authority/00BF,London Borough of Sutton,02/05/2017,1238425,37.6, WWW.MILKANDMORE.CO.UK,MILK FOR MEETINGS,Peoples Services Directorate,Refreshments,F155
http://statistics.data.gov.uk/id/local-authority/00BF,London Borough of Sutton,03/04/2017,1238424,32.9, WWW.MILKANDMORE.CO.UK,MILK DELIVERY FOR MEETINGS,Peoples Services Directorate,Refreshments,F155
http://statistics.data.gov.uk/id/local-authority/00BF,London Borough of Sutton,12/05/2017,1238425,20, OYSTER AUTOTOPUP,OYSTER TOP UP,Peoples Services Directorate,Training - Course Fees,A520
http://statistics.data.gov.uk/id/local-authority/00BF,London Borough of Sutton,14/05/2017,1238425,20, OYSTER BUS AUTOTOP,OYSTER TOP UP,Peoples Services Directorate,Travelling and Subsistence Allowances,A530
http://statistics.data.gov.uk/id/local-authority/00BF,London Borough of Sutton,24/05/2017,1238425,16.15, ZIZZI SUTTON,GS FINAL CONTACT ACTIVITY,Peoples Services Directorate,Personal Requisites,F106
http://statistics.data.gov.uk/id/local-authority/00BF,London Borough of Sutton,11/05/2017,1238425,8.46, TILGATE BAKERY LTD,BB ACTIVITY,Peoples Services Directorate,Personal Requisites,F106
http://statistics.data.gov.uk/id/local-authority/00BF,London Borough of Sutton,08/05/2017,1238425,10, WWW.WIFISPARK.COM,BH WIFI HOSPITAL,Peoples Services Directorate,Personal Requisites,F106
http://statistics.data.gov.uk/id/local-authority/00BF,London Borough of Sutton,05/05/2017,1238425,70.38, INSUREANDGO  26923220,JM TRAVEL INSURANCE,Peoples Services Directorate,Personal Requisites,F106
http://statistics.data.gov.uk/id/local-authority/00BF,London Borough of Sutton,04/05/2017,1238425,4.62, MITIE HEALTHCARE,ACTIVITY BH HOSPITAL,Peoples Services Directorate,Personal Requisites,F106
http://statistics.data.gov.uk/id/local-authority/00BF,London Borough of Sutton,12/04/2017,1238424,82.5, AMAZON UK MARKETPLACE,SM CLOTHING ALLOWANCE,Peoples Services Directorate,Personal Requisites,F106
http://statistics.data.gov.uk/id/local-authority/00BF,London Borough of Sutton,14/03/2017,1238424,-9.25, GRO HM PASSPORT OFFICE,BIRTH CERTIFICATE APPLICATION FOR CG - NOT FOUND AND SO PAYMENT REIMBURSED.,Peoples Services Directorate,Personal Requisites,F106
http://statistics.data.gov.uk/id/local-authority/00BF,London Borough of Sutton,16/05/2017,1238425,-308.47, APPLIANCEDIRECT CO,APPLIANCES FOR EY SETTING UP - PRODUCTS NOT AVAILABLE SO REIMBURSED,Peoples Services Directorate,Education Allowance,H321
http://statistics.data.gov.uk/id/local-authority/00BF,London Borough of Sutton,10/04/2017,1238424,19.5, VUE NCS CITB HS&E TEST,LD CSCS TEST,Peoples Services Directorate,Education Allowance,H321
http://statistics.data.gov.uk/id/local-authority/00BF,London Borough of Sutton,22/05/2017,1238425,162.11, ALLPAY LTD,ACCOMMODATION - AW FIRST WEEKS RENT,Peoples Services Directorate,Approved Lodgings,H323
http://statistics.data.gov.uk/id/local-authority/00BF,London Borough of Sutton,27/03/2017,1238424,275, GRANT PROPERTY SOLUTIO,RENT JM,Peoples Services Directorate,Approved Lodgings,H323
http://statistics.data.gov.uk/id/local-authority/00BF,London Borough of Sutton,25/05/2017,1238425,21.65, WWW.ARGOS.CO.UK,FURNITURE,Peoples Services Directorate,Set Up Costs - Children Leaving Care,H336
http://statistics.data.gov.uk/id/local-authority/00BF,London Borough of Sutton,25/05/2017,1238425,243.33, IKEA ONLINE,FURNITURE,Peoples Services Directorate,Set Up Costs - Children Leaving Care,H336
http://statistics.data.gov.uk/id/local-authority/00BF,London Borough of Sutton,25/05/2017,1238425,60.76, ASDA GEORGE COM LEEDS,VACUUM CLEANER,Peoples Services Directorate,Set Up Costs - Children Leaving Care,H336
http://statistics.data.gov.uk/id/local-authority/00BF,London Borough of Sutton,22/05/2017,1238425,416.65, WWW.ARGOS.CO.UK,FURNITURE - TV & SOFA,Peoples Services Directorate,Set Up Costs - Children Leaving Care,H336
http://statistics.data.gov.uk/id/local-authority/00BF,London Borough of Sutton,23/05/2017,1238425,249.17, WWW.ARGOS.CO.UK,FURNITURE,Peoples Services Directorate,Set Up Costs - Children Leaving Care,H336
http://statistics.data.gov.uk/id/local-authority/00BF,London Borough of Sutton,19/05/2017,1238425,316.67, HOME SWEET HOME FURNIT,FURNITURE - BED,Peoples Services Directorate,Set Up Costs - Children Leaving Care,H336
http://statistics.data.gov.uk/id/local-authority/00BF,London Borough of Sutton,11/05/2017,1238425,250, IKEA ONLINE,FURNITURE,Peoples Services Directorate,Set Up Costs - Children Leaving Care,H336
http://statistics.data.gov.uk/id/local-authority/00BF,London Borough of Sutton,11/05/2017,1238425,112.08, IKEA ONLINE,FURNITURE PURCHASE,Peoples Services Directorate,Set Up Costs - Children Leaving Care,H336
http://statistics.data.gov.uk/id/local-authority/00BF,London Borough of Sutton,15/05/2017,1238425,119.12, WWW.ARGOS.CO.UK,PURCHASE OF HOUSEHOLD ITEM FOR YOUNG PERSON,Peoples Services Directorate,Set Up Costs - Children Leaving Care,H336
http://statistics.data.gov.uk/id/local-authority/00BF,London Borough of Sutton,19/05/2017,1238425,624.14, SUTTON APPLIANCES,SETTING UP AW WHITE GOODS,Peoples Services Directorate,Set Up Costs - Children Leaving Care,H336
http://statistics.data.gov.uk/id/local-authority/00BF,London Borough of Sutton,27/04/2017,1238425,203.32, TESCO DIRECT,LC HOOVER AND TV - SETTING UP,Peoples Services Directorate,Set Up Costs - Children Leaving Care,H336
http://statistics.data.gov.uk/id/local-authority/00BF,London Borough of Sutton,18/05/2017,1238425,38.15, TRAINLINE,TRAIN TRAVEL,Peoples Services Directorate,C.C.A Travel & Subsistance,H212
http://statistics.data.gov.uk/id/local-authority/00BF,London Borough of Sutton,28/04/2017,1238425,13.75, PRIMARK,BH CLOTHING FOR HOSPITAL,Peoples Services Directorate,Personal Requisites,F106
http://statistics.data.gov.uk/id/local-authority/00BF,London Borough of Sutton,28/04/2017,1238425,3.04, MARKS&SPENCER PLC,BH REFRESHMENTS FOR HOSPITAL STAY,Peoples Services Directorate,Personal Requisites,F106
http://statistics.data.gov.uk/id/local-authority/00BF,London Borough of Sutton,19/04/2017,1238424,25, HOSPEDIAHOSPITALTV,BH TV AND INTERNET WHILE IN HOSPITAL,Peoples Services Directorate,Personal Requisites,F106
http://statistics.data.gov.uk/id/local-authority/00BF,London Borough of Sutton,19/05/2017,1238425,501.67, PREMIER INN,Accommodation,Peoples Services Directorate,Hotel Accomodation,A512
http://statistics.data.gov.uk/id/local-authority/00BF,London Borough of Sutton,18/05/2017,1238425,"1,085.83", TRAVELODGE,Accommodation,Peoples Services Directorate,Hotel Accomodation,A512
http://statistics.data.gov.uk/id/local-authority/00BF,London Borough of Sutton,29/03/2017,1238424,578.33, TRAVELODGE,ACCOMMODATION (HOMELESS FAMILY),Peoples Services Directorate,Hotel Accomodation,A512
http://statistics.data.gov.uk/id/local-authority/00BF,London Borough of Sutton,12/04/2017,1238424,15.6, TRAINLINE,TRAIN TRAVEL,Peoples Services Directorate,Travelling and Subsistence Allowances,A530
http://statistics.data.gov.uk/id/local-authority/00BF,London Borough of Sutton,22/05/2017,1238425,60.79, TRAINLINE,TRAIN TRAVEL,Peoples Services Directorate,Travelling and Subsistence Allowances,A530
http://statistics.data.gov.uk/id/local-authority/00BF,London Borough of Sutton,19/05/2017,1238425,20, OYSTER BUS AUTOSET,OYSTER TOP UP,Peoples Services Directorate,Travelling and Subsistence Allowances,A530
http://statistics.data.gov.uk/id/local-authority/00BF,London Borough of Sutton,27/04/2017,1238425,33.33, OYSTER AUTOSETTLE,OYSTER AUTO TOPUP,Peoples Services Directorate,Travelling and Subsistence Allowances,A530
http://statistics.data.gov.uk/id/local-authority/00BF,London Borough of Sutton,30/03/2017,1238424,15.42, GRO HM PASSPORT OFFICE,Birth certificate KD,Peoples Services Directorate,Personal Requisites,F106
http://statistics.data.gov.uk/id/local-authority/00BF,London Borough of Sutton,11/05/2017,1238425,586.67, PREMIER INN,ACCOMMODATION J,Peoples Services Directorate,Accommodation - Bed and Breakfast,H202
http://statistics.data.gov.uk/id/local-authority/00BF,London Borough of Sutton,02/05/2017,1238425,478.96, TRAVELODGE,ACCOMMODATION FOR LAC CHILD,Peoples Services Directorate,Payments Under the Child Care Act 1980,H210
http://statistics.data.gov.uk/id/local-authority/00BF,London Borough of Sutton,16/05/2017,1238425,-629.17, TRAVELODGE,TRAVEL LODGE REFUND,Peoples Services Directorate,Payments Under the Child Care Act 1980,H210
http://statistics.data.gov.uk/id/local-authority/00BF,London Borough of Sutton,11/05/2017,1238425,579.17, TRAVELODGE,Accommodation,Peoples Services Directorate,Payments Under the Child Care Act 1980,H210
http://statistics.data.gov.uk/id/local-authority/00BF,London Borough of Sutton,27/04/2017,1238425,946.67, TRAVELODGE,Accommodation,Peoples Services Directorate,Payments Under the Child Care Act 1980,H210
http://statistics.data.gov.uk/id/local-authority/00BF,London Borough of Sutton,20/04/2017,1238424,445.83, TRAVELODGE,ACCOMMODATION - RAS - CLIENT SJ,Peoples Services Directorate,Payments Under the Child Care Act 1980,H210
http://statistics.data.gov.uk/id/local-authority/00BF,London Borough of Sutton,31/03/2017,1238424,"1,005.42", TRAVELODGE,Accommodation,Peoples Services Directorate,Payments Under the Child Care Act 1980,H210
http://statistics.data.gov.uk/id/local-authority/00BF,London Borough of Sutton,27/03/2017,1238424,"1,191.83", TRAVELODGE,ONGOING HOTEL ACCOMMODATION,Peoples Services Directorate,Payments Under the Child Care Act 1980,H210
http://statistics.data.gov.uk/id/local-authority/00BF,London Borough of Sutton,21/04/2017,1238424,972.3, TRAVELODGE,Accommodation,Peoples Services Directorate,Payments Under the Child Care Act 1980,H210
http://statistics.data.gov.uk/id/local-authority/00BF,London Borough of Sutton,10/04/2017,1238424,86.67, TRAVELODGE,1 Night accomadation,Peoples Services Directorate,C.C.A Rent & Utilities,H211
http://statistics.data.gov.uk/id/local-authority/00BF,London Borough of Sutton,28/04/2017,1238425,416.67, PREMIER INN,ACCOMMODATION FOR LAC CHILD,Peoples Services Directorate,C.C.A Travel & Subsistance,H212
http://statistics.data.gov.uk/id/local-authority/00BF,London Borough of Sutton,23/05/2017,1238425,59.77, TRAINLINE,TRAIN TRAVEL,Peoples Services Directorate,C.C.A Travel & Subsistance,H212
http://statistics.data.gov.uk/id/local-authority/00BF,London Borough of Sutton,15/05/2017,1238425,375, POINTVIEW ESTATES,HOTEL ACCOMMODATION FOR LAC CHILD,Peoples Services Directorate,Staff Advertising,A500
http://statistics.data.gov.uk/id/local-authority/00BF,London Borough of Sutton,23/05/2017,1238425,65.59, TRAINLINE,TRAIN TRAVEL,Peoples Services Directorate,Travelling and Subsistence Allowances,A530
http://statistics.data.gov.uk/id/local-authority/00BF,London Borough of Sutton,23/05/2017,1238425,259.33, TRAINLINE,TRAIN TRAVEL,Peoples Services Directorate,Travelling and Subsistence Allowances,A530
http://statistics.data.gov.uk/id/local-authority/00BF,London Borough of Sutton,23/05/2017,1238425,112.71, TRAINLINE,TRAIN TRAVEL,Peoples Services Directorate,Travelling and Subsistence Allowances,A530
http://statistics.data.gov.uk/id/local-authority/00BF,London Borough of Sutton,22/05/2017,1238425,-18.2, TRAINLINE,TRAIN TRAVEL,Peoples Services Directorate,Travelling and Subsistence Allowances,A530
http://statistics.data.gov.uk/id/local-authority/00BF,London Borough of Sutton,26/04/2017,1238425,8.31, TRAINLINE,TRAIN TRAVEL,Peoples Services Directorate,Travelling and Subsistence Allowances,A530
http://statistics.data.gov.uk/id/local-authority/00BF,London Borough of Sutton,10/05/2017,1238425,8.31, TRAINLINE,TRAIN TRAVEL,Peoples Services Directorate,Travelling and Subsistence Allowances,A530
http://statistics.data.gov.uk/id/local-authority/00BF,London Borough of Sutton,27/03/2017,1238424,44.06, TRAINLINE,TRAIN TRAVEL,Peoples Services Directorate,Travelling and Subsistence Allowances,A530
http://statistics.data.gov.uk/id/local-authority/00BF,London Borough of Sutton,25/04/2017,1238424,27.41, TRAINLINE,TRAIN TRAVEL,Peoples Services Directorate,Travelling and Subsistence Allowances,A530
http://statistics.data.gov.uk/id/local-authority/00BF,London Borough of Sutton,21/04/2017,1238424,36.89, TRAINLINE,TRAIN TRAVEL,Peoples Services Directorate,Travelling and Subsistence Allowances,A530
http://statistics.data.gov.uk/id/local-authority/00BF,London Borough of Sutton,20/04/2017,1238424,32.98, TRAINLINE,TRAIN TRAVEL,Peoples Services Directorate,Travelling and Subsistence Allowances,A530
http://statistics.data.gov.uk/id/local-authority/00BF,London Borough of Sutton,20/04/2017,1238424,27.24, TRAINLINE,TRAIN TRAVEL,Peoples Services Directorate,Travelling and Subsistence Allowances,A530
http://statistics.data.gov.uk/id/local-authority/00BF,London Borough of Sutton,19/04/2017,1238424,34.85, TRAINLINE,TRAIN TRAVEL,Peoples Services Directorate,Travelling and Subsistence Allowances,A530
http://statistics.data.gov.uk/id/local-authority/00BF,London Borough of Sutton,19/04/2017,1238424,32.98, TRAINLINE,TRAIN TRAVEL,Peoples Services Directorate,Travelling and Subsistence Allowances,A530
http://statistics.data.gov.uk/id/local-authority/00BF,London Borough of Sutton,19/04/2017,1238424,94.86, TRAINLINE,TRAIN TRAVEL,Peoples Services Directorate,Travelling and Subsistence Allowances,A530
http://statistics.data.gov.uk/id/local-authority/00BF,London Borough of Sutton,18/04/2017,1238424,93.92, TRAINLINE,TRAIN TRAVEL,Peoples Services Directorate,Travelling and Subsistence Allowances,A530
http://statistics.data.gov.uk/id/local-authority/00BF,London Borough of Sutton,13/04/2017,1238424,24.69, TRAINLINE,TRAIN TRAVEL,Peoples Services Directorate,Travelling and Subsistence Allowances,A530
http://statistics.data.gov.uk/id/local-authority/00BF,London Borough of Sutton,12/04/2017,1238424,64.75, WWW.WIGHTLINK.CO.UK,LAC VISIT TO ISLE OF WIGHT - FERRY,Peoples Services Directorate,Travelling and Subsistence Allowances,A530
http://statistics.data.gov.uk/id/local-authority/00BF,London Borough of Sutton,12/04/2017,1238424,35.96, TRAINLINE,TRAIN TRAVEL,Peoples Services Directorate,Travelling and Subsistence Allowances,A530
http://statistics.data.gov.uk/id/local-authority/00BF,London Borough of Sutton,12/04/2017,1238424,17.72, TRAINLINE,TRAIN TRAVEL,Peoples Services Directorate,Travelling and Subsistence Allowances,A530
http://statistics.data.gov.uk/id/local-authority/00BF,London Borough of Sutton,12/04/2017,1238424,59.92, TRAINLINE,TRAIN TRAVEL,Peoples Services Directorate,Travelling and Subsistence Allowances,A530
http://statistics.data.gov.uk/id/local-authority/00BF,London Borough of Sutton,11/04/2017,1238424,31.45, TRAINLINE,TRAIN TRAVEL,Peoples Services Directorate,Travelling and Subsistence Allowances,A530
http://statistics.data.gov.uk/id/local-authority/00BF,London Borough of Sutton,07/04/2017,1238424,97.32, TRAINLINE,TRAIN TRAVEL,Peoples Services Directorate,Travelling and Subsistence Allowances,A530
http://statistics.data.gov.uk/id/local-authority/00BF,London Borough of Sutton,07/04/2017,1238424,26.47, TRAINLINE,TRAIN TRAVEL,Peoples Services Directorate,Travelling and Subsistence Allowances,A530
http://statistics.data.gov.uk/id/local-authority/00BF,London Borough of Sutton,07/04/2017,1238424,18.06, TRAINLINE,TRAIN TRAVEL,Peoples Services Directorate,Travelling and Subsistence Allowances,A530
http://statistics.data.gov.uk/id/local-authority/00BF,London Borough of Sutton,07/04/2017,1238424,25.03, TRAINLINE,TRAIN TRAVEL,Peoples Services Directorate,Travelling and Subsistence Allowances,A530
http://statistics.data.gov.uk/id/local-authority/00BF,London Borough of Sutton,07/04/2017,1238424,40.72, TRAINLINE,TRAIN TRAVEL,Peoples Services Directorate,Travelling and Subsistence Allowances,A530
http://statistics.data.gov.uk/id/local-authority/00BF,London Borough of Sutton,06/04/2017,1238424,36.81, TRAINLINE,TRAIN TRAVEL,Peoples Services Directorate,Travelling and Subsistence Allowances,A530
http://statistics.data.gov.uk/id/local-authority/00BF,London Borough of Sutton,06/04/2017,1238424,28.86, TRAINLINE,TRAIN TRAVEL,Peoples Services Directorate,Travelling and Subsistence Allowances,A530
http://statistics.data.gov.uk/id/local-authority/00BF,London Borough of Sutton,05/04/2017,1238424,25.03, TRAINLINE,TRAIN TRAVEL,Peoples Services Directorate,Travelling and Subsistence Allowances,A530
http://statistics.data.gov.uk/id/local-authority/00BF,London Borough of Sutton,05/04/2017,1238424,34.93, TRAINLINE,TRAIN TRAVEL,Peoples Services Directorate,Travelling and Subsistence Allowances,A530
http://statistics.data.gov.uk/id/local-authority/00BF,London Borough of Sutton,04/04/2017,1238424,40.72, TRAINLINE,TRAIN TRAVEL,Peoples Services Directorate,Travelling and Subsistence Allowances,A530
http://statistics.data.gov.uk/id/local-authority/00BF,London Borough of Sutton,04/04/2017,1238424,18.15, TRAINLINE,TRAIN TRAVEL,Peoples Services Directorate,Travelling and Subsistence Allowances,A530
http://statistics.data.gov.uk/id/local-authority/00BF,London Borough of Sutton,03/04/2017,1238424,51, TRAINLINE,TRAIN TRAVEL,Peoples Services Directorate,Travelling and Subsistence Allowances,A530
http://statistics.data.gov.uk/id/local-authority/00BF,London Borough of Sutton,27/03/2017,1238424,-26.1, TRAINLINE,REFUND OF TRAIN TRAVEL STAFF,Peoples Services Directorate,Travelling and Subsistence Allowances,A530
http://statistics.data.gov.uk/id/local-authority/00BF,London Borough of Sutton,31/03/2017,1238424,97.72, TRAINLINE,TRAIN TRAVEL,Peoples Services Directorate,Travelling and Subsistence Allowances,A530
http://statistics.data.gov.uk/id/local-authority/00BF,London Borough of Sutton,30/03/2017,1238424,28, TRAINLINE,TRAIN TRAVEL,Peoples Services Directorate,Travelling and Subsistence Allowances,A530
http://statistics.data.gov.uk/id/local-authority/00BF,London Borough of Sutton,29/03/2017,1238424,45.59, TRAINLINE,TRAIN TRAVEL,Peoples Services Directorate,Travelling and Subsistence Allowances,A530
http://statistics.data.gov.uk/id/local-authority/00BF,London Borough of Sutton,29/03/2017,1238424,32.08, TRAINLINE,TRAIN TRAVEL,Peoples Services Directorate,Travelling and Subsistence Allowances,A530
http://statistics.data.gov.uk/id/local-authority/00BF,London Borough of Sutton,29/03/2017,1238424,24.33, TRAINLINE,TRAIN TRAVEL,Peoples Services Directorate,Travelling and Subsistence Allowances,A530
http://statistics.data.gov.uk/id/local-authority/00BF,London Borough of Sutton,25/05/2017,1238425,45.59, TRAINLINE,TRAIN TRAVEL,Peoples Services Directorate,Travelling and Subsistence Allowances,A530
http://statistics.data.gov.uk/id/local-authority/00BF,London Borough of Sutton,24/05/2017,1238425,58.55, TRAINLINE,TRAIN TRAVEL,Peoples Services Directorate,Travelling and Subsistence Allowances,A530
http://statistics.data.gov.uk/id/local-authority/00BF,London Borough of Sutton,22/05/2017,1238425,21.27, TRAINLINE,TRAIN TRAVEL,Peoples Services Directorate,Travelling and Subsistence Allowances,A530
http://statistics.data.gov.uk/id/local-authority/00BF,London Borough of Sutton,22/05/2017,1238425,113.42, TRAINLINE,TRAIN TRAVEL,Peoples Services Directorate,Travelling and Subsistence Allowances,A530
http://statistics.data.gov.uk/id/local-authority/00BF,London Borough of Sutton,16/05/2017,1238425,112.1, TRAINLINE,TRAIN TRAVEL,Peoples Services Directorate,Travelling and Subsistence Allowances,A530
http://statistics.data.gov.uk/id/local-authority/00BF,London Borough of Sutton,11/05/2017,1238425,278.97, TRAINLINE,TRAIN TRAVEL,Peoples Services Directorate,Travelling and Subsistence Allowances,A530
http://statistics.data.gov.uk/id/local-authority/00BF,London Borough of Sutton,11/05/2017,1238425,25.75, TRAINLINE,TRAIN TRAVEL,Peoples Services Directorate,Travelling and Subsistence Allowances,A530
http://statistics.data.gov.uk/id/local-authority/00BF,London Borough of Sutton,10/05/2017,1238425,204.51, TRAINLINE,TRAIN TRAVEL,Peoples Services Directorate,Travelling and Subsistence Allowances,A530
http://statistics.data.gov.uk/id/local-authority/00BF,London Borough of Sutton,09/05/2017,1238425,38.35, TRAINLINE,TRAIN TRAVEL,Peoples Services Directorate,Travelling and Subsistence Allowances,A530
http://statistics.data.gov.uk/id/local-authority/00BF,London Borough of Sutton,21/05/2017,1238425,16.67, OYSTER AUTOTOPUP,OYSTER AUTO TOPUP,Peoples Services Directorate,Travelling and Subsistence Allowances,A530
http://statistics.data.gov.uk/id/local-authority/00BF,London Borough of Sutton,18/05/2017,1238425,23.76, TRAINLINE,JOURNEY FOR LAC VISIT,Peoples Services Directorate,Travelling and Subsistence Allowances,A530
http://statistics.data.gov.uk/id/local-authority/00BF,London Borough of Sutton,12/05/2017,1238425,82.45, TRAINLINE,JOURNEY FOR LAC VISIT,Peoples Services Directorate,Travelling and Subsistence Allowances,A530
http://statistics.data.gov.uk/id/local-authority/00BF,London Borough of Sutton,12/05/2017,1238425,20.61, TRAINLINE,JOURNEY FOR LAC VISIT,Peoples Services Directorate,Travelling and Subsistence Allowances,A530
http://statistics.data.gov.uk/id/local-authority/00BF,London Borough of Sutton,12/05/2017,1238425,192.52, TRAINLINE,JOURNEY FOR LAC VISIT,Peoples Services Directorate,Travelling and Subsistence Allowances,A530
http://statistics.data.gov.uk/id/local-authority/00BF,London Borough of Sutton,12/05/2017,1238425,-179.17, TRAINLINE,JOURNEY FOR LAC VISIT,Peoples Services Directorate,Travelling and Subsistence Allowances,A530
http://statistics.data.gov.uk/id/local-authority/00BF,London Borough of Sutton,14/05/2017,1238425,16.67, OYSTER AUTOTOPUP,OYSTER AUTO TOPUP,Peoples Services Directorate,Travelling and Subsistence Allowances,A530
http://statistics.data.gov.uk/id/local-authority/00BF,London Borough of Sutton,04/05/2017,1238425,29.17, THE HOUSE INC LTD,FLOWERS FOR FOSTER CARERS AS REQUESTED BY HOS,Peoples Services Directorate,Travelling and Subsistence Allowances,A530
http://statistics.data.gov.uk/id/local-authority/00BF,London Borough of Sutton,04/05/2017,1238425,132.13, TRAINLINE,JOURNEY FOR LAC VISIT,Peoples Services Directorate,Travelling and Subsistence Allowances,A530
http://statistics.data.gov.uk/id/local-authority/00BF,London Borough of Sutton,03/05/2017,1238425,75.82, TRAINLINE,JOURNEY FOR LAC VISIT,Peoples Services Directorate,Travelling and Subsistence Allowances,A530
http://statistics.data.gov.uk/id/local-authority/00BF,London Borough of Sutton,03/05/2017,1238425,41.48, TRAINLINE,JOURNEY FOR LAC VISIT,Peoples Services Directorate,Travelling and Subsistence Allowances,A530
http://statistics.data.gov.uk/id/local-authority/00BF,London Borough of Sutton,04/05/2017,1238425,31.96, TRAINLINE,JOURNEY FOR LAC VISIT,Peoples Services Directorate,Travelling and Subsistence Allowances,A530
http://statistics.data.gov.uk/id/local-authority/00BF,London Borough of Sutton,04/05/2017,1238425,21.21, TRAINLINE,JOURNEY FOR LAC VISIT,Peoples Services Directorate,Travelling and Subsistence Allowances,A530
http://statistics.data.gov.uk/id/local-authority/00BF,London Borough of Sutton,04/05/2017,1238425,-5.67, TRAINLINE,JOURNEY FOR LAC VISIT,Peoples Services Directorate,Travelling and Subsistence Allowances,A530
http://statistics.data.gov.uk/id/local-authority/00BF,London Borough of Sutton,04/05/2017,1238425,22.31, TRAINLINE,JOURNEY FOR LAC VISIT,Peoples Services Directorate,Travelling and Subsistence Allowances,A530
http://statistics.data.gov.uk/id/local-authority/00BF,London Borough of Sutton,03/05/2017,1238425,39.78, TRAINLINE,JOURNEY FOR LAC VISIT,Peoples Services Directorate,Travelling and Subsistence Allowances,A530
http://statistics.data.gov.uk/id/local-authority/00BF,London Borough of Sutton,03/05/2017,1238425,22.74, TRAINLINE,JOURNEY FOR LAC VISIT,Peoples Services Directorate,Travelling and Subsistence Allowances,A530
http://statistics.data.gov.uk/id/local-authority/00BF,London Borough of Sutton,03/05/2017,1238425,40.97, TRAINLINE,JOURNEY FOR LAC VISIT,Peoples Services Directorate,Travelling and Subsistence Allowances,A530
http://statistics.data.gov.uk/id/local-authority/00BF,London Borough of Sutton,28/04/2017,1238425,72.51, TRAINLINE,JOURNEY FOR LAC VISIT,Peoples Services Directorate,Travelling and Subsistence Allowances,A530
http://statistics.data.gov.uk/id/local-authority/00BF,London Borough of Sutton,28/04/2017,1238425,75.82, TRAINLINE,JOURNEY FOR LAC VISIT,Peoples Services Directorate,Travelling and Subsistence Allowances,A530
http://statistics.data.gov.uk/id/local-authority/00BF,London Borough of Sutton,29/04/2017,1238425,16.67, OYSTER AUTOTOPUP,OYSTER AUTO TOPUP,Peoples Services Directorate,Travelling and Subsistence Allowances,A530
http://statistics.data.gov.uk/id/local-authority/00BF,London Borough of Sutton,27/04/2017,1238425,81.43, TRAINLINE,JOURNEY FOR LAC VISIT,Peoples Services Directorate,Travelling and Subsistence Allowances,A530
http://statistics.data.gov.uk/id/local-authority/00BF,London Borough of Sutton,27/04/2017,1238425,16.67, OYSTER BUS AUTOSET,OYSTER AUTO TOPUP,Peoples Services Directorate,Travelling and Subsistence Allowances,A530
http://statistics.data.gov.uk/id/local-authority/00BF,London Borough of Sutton,27/04/2017,1238425,50, OYSTER BUS AUTOSET,OYSTER AUTO TOPUP,Peoples Services Directorate,Travelling and Subsistence Allowances,A530
http://statistics.data.gov.uk/id/local-authority/00BF,London Borough of Sutton,27/04/2017,1238425,16.67, OYSTER BUS AUTOSET,OYSTER AUTO TOPUP,Peoples Services Directorate,Travelling and Subsistence Allowances,A530
http://statistics.data.gov.uk/id/local-authority/00BF,London Borough of Sutton,27/04/2017,1238425,16.67, OYSTER AUTOSETTLE,OYSTER AUTO TOPUP,Peoples Services Directorate,Travelling and Subsistence Allowances,A530
http://statistics.data.gov.uk/id/local-authority/00BF,London Borough of Sutton,19/05/2017,1238425,20, OYSTER BUS AUTOSET,OYSTER TOP UP,Peoples Services Directorate,Travelling and Subsistence Allowances,A530
http://statistics.data.gov.uk/id/local-authority/00BF,London Borough of Sutton,20/05/2017,1238425,20, OYSTER AUTOTOPUP,OYSTER TOP UP,Peoples Services Directorate,Travelling and Subsistence Allowances,A530
http://statistics.data.gov.uk/id/local-authority/00BF,London Borough of Sutton,18/05/2017,1238425,24.68, TRAINLINE,TRAIN TRAVEL,Peoples Services Directorate,Travelling and Subsistence Allowances,A530
http://statistics.data.gov.uk/id/local-authority/00BF,London Borough of Sutton,17/05/2017,1238425,125.77, TRAINLINE,TRAIN TRAVEL,Peoples Services Directorate,Travelling and Subsistence Allowances,A530
http://statistics.data.gov.uk/id/local-authority/00BF,London Borough of Sutton,16/05/2017,1238425,24.73, TRAINLINE,TRAIN TRAVEL,Peoples Services Directorate,Travelling and Subsistence Allowances,A530
http://statistics.data.gov.uk/id/local-authority/00BF,London Borough of Sutton,12/05/2017,1238425,42.74, TRAINLINE,TRAIN TRAVEL,Peoples Services Directorate,Travelling and Subsistence Allowances,A530
http://statistics.data.gov.uk/id/local-authority/00BF,London Borough of Sutton,12/05/2017,1238425,44.17, TRAINLINE,TRAIN TRAVEL,Peoples Services Directorate,Travelling and Subsistence Allowances,A530
http://statistics.data.gov.uk/id/local-authority/00BF,London Borough of Sutton,27/04/2017,1238425,16.98, TRAINLINE,TRAIN TRAVEL,Peoples Services Directorate,Travelling and Subsistence Allowances,A530
http://statistics.data.gov.uk/id/local-authority/00BF,London Borough of Sutton,27/04/2017,1238425,16.98, TRAINLINE,TRAIN TRAVEL,Peoples Services Directorate,Travelling and Subsistence Allowances,A530
http://statistics.data.gov.uk/id/local-authority/00BF,London Borough of Sutton,26/04/2017,1238425,49.47, TRAINLINE,TRAIN TRAVEL,Peoples Services Directorate,Travelling and Subsistence Allowances,A530
http://statistics.data.gov.uk/id/local-authority/00BF,London Borough of Sutton,27/04/2017,1238425,62.98, TRAINLINE,JOURNEY FOR LAC VISIT,Peoples Services Directorate,Travelling and Subsistence Allowances,A530
http://statistics.data.gov.uk/id/local-authority/00BF,London Borough of Sutton,27/04/2017,1238425,16.67, OYSTER AUTOSETTLE,OYSTER AUTO TOPUP,Peoples Services Directorate,Travelling and Subsistence Allowances,A530
http://statistics.data.gov.uk/id/local-authority/00BF,London Borough of Sutton,10/05/2017,1238425,20, OYSTER BUS AUTOSET,TRAVEL - OYSTERCARD,Peoples Services Directorate,Staff Travelling Expenses,E130
http://statistics.data.gov.uk/id/local-authority/00BF,London Borough of Sutton,15/05/2017,1238425,49, HM PASSPORT OFFICE,PASSPORT APPLICATION,Peoples Services Directorate,Personal Requisites,F106
http://statistics.data.gov.uk/id/local-authority/00BF,London Borough of Sutton,09/05/2017,1238425,49, IPS PETERBOROUGH CONTA,PASSPORT APPLICATION KL,Peoples Services Directorate,Personal Requisites,F106
http://statistics.data.gov.uk/id/local-authority/00BF,London Borough of Sutton,09/05/2017,1238425,49, IPS PETERBOROUGH CONTA,PASSPORT APPLICATION ER,Peoples Services Directorate,Personal Requisites,F106
http://statistics.data.gov.uk/id/local-authority/00BF,London Borough of Sutton,09/05/2017,1238425,40, LBSUTTON,BIRTH CERTIFICATE ER,Peoples Services Directorate,Personal Requisites,F106
http://statistics.data.gov.uk/id/local-authority/00BF,London Borough of Sutton,18/05/2017,1238425,90, PREMIER INN,Accommodation,Peoples Services Directorate,Personal Requisites,F106
http://statistics.data.gov.uk/id/local-authority/00BF,London Borough of Sutton,21/04/2017,1238424,81.43, TRAINLINE,TRAIN TRAVEL,Peoples Services Directorate,Personal Requisites,F106
http://statistics.data.gov.uk/id/local-authority/00BF,London Borough of Sutton,19/04/2017,1238424,51.42, TRAINLINE,TRAIN TRAVEL,Peoples Services Directorate,Personal Requisites,F106
http://statistics.data.gov.uk/id/local-authority/00BF,London Borough of Sutton,11/04/2017,1238424,24.61, TRAINLINE,TRAIN TRAVEL,Peoples Services Directorate,Personal Requisites,F106
http://statistics.data.gov.uk/id/local-authority/00BF,London Borough of Sutton,11/04/2017,1238424,19, TRAINLINE,TRAIN TRAVEL,Peoples Services Directorate,Personal Requisites,F106
http://statistics.data.gov.uk/id/local-authority/00BF,London Borough of Sutton,10/04/2017,1238424,40.03, TRAINLINE,TRAIN TRAVEL,Peoples Services Directorate,Personal Requisites,F106
http://statistics.data.gov.uk/id/local-authority/00BF,London Borough of Sutton,10/04/2017,1238424,31.45, TRAINLINE,TRAIN TRAVEL,Peoples Services Directorate,Personal Requisites,F106
http://statistics.data.gov.uk/id/local-authority/00BF,London Borough of Sutton,07/04/2017,1238424,68.42, TRAINLINE,TRAIN TRAVEL,Peoples Services Directorate,Personal Requisites,F106
http://statistics.data.gov.uk/id/local-authority/00BF,London Borough of Sutton,07/04/2017,1238424,70.21, TRAINLINE,TRAIN TRAVEL,Peoples Services Directorate,Personal Requisites,F106
http://statistics.data.gov.uk/id/local-authority/00BF,London Borough of Sutton,05/04/2017,1238424,42.17, WWW.LEEVALLEY.ORG.UK,LEE VALLEY FARM,Peoples Services Directorate,Personal Requisites,F106
http://statistics.data.gov.uk/id/local-authority/00BF,London Borough of Sutton,30/03/2017,1238424,49, HM PASSPORT OFFICE,PASSPORT,Peoples Services Directorate,Personal Requisites,F106
http://statistics.data.gov.uk/id/local-authority/00BF,London Borough of Sutton,30/03/2017,1238424,49, HM PASSPORT OFFICE,PASSPORT,Peoples Services Directorate,Personal Requisites,F106
http://statistics.data.gov.uk/id/local-authority/00BF,London Borough of Sutton,30/03/2017,1238424,98, HM PASSPORT OFFICE,PASSPORT,Peoples Services Directorate,Personal Requisites,F106
http://statistics.data.gov.uk/id/local-authority/00BF,London Borough of Sutton,12/05/2017,1238425,15.42, GRO HM PASSPORT OFFICE,PASSPORT CERTIFICATE FOR LAC CHILD,Peoples Services Directorate,Payments Under the Child Care Act 1980,H210
http://statistics.data.gov.uk/id/local-authority/00BF,London Borough of Sutton,03/05/2017,1238425,18.22, RB KEN&CHELSEA,BIRTH CERTIFICATE FOR LAC CHILD,Peoples Services Directorate,Payments Under the Child Care Act 1980,H210
http://statistics.data.gov.uk/id/local-authority/00BF,London Borough of Sutton,04/05/2017,1238425,337.83, RIVAL,Y/PERSON SCHOOL UNIFORM,Peoples Services Directorate,Payments Under the Child Care Act 1980,H210
http://statistics.data.gov.uk/id/local-authority/00BF,London Borough of Sutton,11/04/2017,1238424,7.71, GRO HM PASSPORT OFFICE,BIRTH CERTIFICATE FOR DF,Peoples Services Directorate,Payments Under the Child Care Act 1980,H210
http://statistics.data.gov.uk/id/local-authority/00BF,London Borough of Sutton,21/04/2017,1238424,36.72, TRAINLINE,TRAIN TRAVEL,Peoples Services Directorate,Travelling and Subsistence Allowances,A530
http://statistics.data.gov.uk/id/local-authority/00BF,London Borough of Sutton,18/04/2017,1238424,10.24, TRAINLINE,TRAIN TRAVEL,Peoples Services Directorate,Travelling and Subsistence Allowances,A530
http://statistics.data.gov.uk/id/local-authority/00BF,London Borough of Sutton,29/03/2017,1238424,16.27, TRAINLINE,TRAIN TRAVEL,Peoples Services Directorate,Travelling and Subsistence Allowances,A530
http://statistics.data.gov.uk/id/local-authority/00BF,London Borough of Sutton,15/05/2017,1238425,31.96, TRAINLINE,JOURNEY FOR LAC VISIT,Peoples Services Directorate,Travelling and Subsistence Allowances,A530
http://statistics.data.gov.uk/id/local-authority/00BF,London Borough of Sutton,15/05/2017,1238425,31.45, TRAINLINE,JOURNEY FOR LAC VISIT,Peoples Services Directorate,Travelling and Subsistence Allowances,A530
http://statistics.data.gov.uk/id/local-authority/00BF,London Borough of Sutton,15/05/2017,1238425,42.5, TRAINLINE,JOURNEY FOR LAC VISIT,Peoples Services Directorate,Travelling and Subsistence Allowances,A530
http://statistics.data.gov.uk/id/local-authority/00BF,London Borough of Sutton,03/05/2017,1238425,14.92, TRAINLINE,JOURNEY FOR LAC VISIT,Peoples Services Directorate,Travelling and Subsistence Allowances,A530
http://statistics.data.gov.uk/id/local-authority/00BF,London Borough of Sutton,17/05/2017,1238425,25, OYSTER ISSUE WEB,OYSTER TOP UP,Peoples Services Directorate,Travelling and Subsistence Allowances,A530
http://statistics.data.gov.uk/id/local-authority/00BF,London Borough of Sutton,26/04/2017,1238425,9.33, TRAINLINE,TRAIN TRAVEL,Peoples Services Directorate,Travelling and Subsistence Allowances,A530
http://statistics.data.gov.uk/id/local-authority/00BF,London Borough of Sutton,03/05/2017,1238425,18.22, RB KEN&CHELSEA,BIRTH CERTIFICATE FOR LAC CHILD,Peoples Services Directorate,Payments Under the Child Care Act 1980,H210
http://statistics.data.gov.uk/id/local-authority/00BF,London Borough of Sutton,03/05/2017,1238425,18.22, RB KEN&CHELSEA,BIRTH CERTIFICATE FOR LAC CHILD,Peoples Services Directorate,Payments Under the Child Care Act 1980,H210
http://statistics.data.gov.uk/id/local-authority/00BF,London Borough of Sutton,02/05/2017,1238425,17.92, L B SOUTHWARK - INT,BIRTH CERTIFICATE FOR LAC CHILD,Peoples Services Directorate,Payments Under the Child Care Act 1980,H210
http://statistics.data.gov.uk/id/local-authority/00BF,London Borough of Sutton,27/04/2017,1238425,81.67, HM PASSPORT OFFICE,PASSPORT FOR LAC CHILD,Peoples Services Directorate,Payments Under the Child Care Act 1980,H210
http://statistics.data.gov.uk/id/local-authority/00BF,London Borough of Sutton,25/04/2017,1238424,18.26, LEWISHAM COUNCIL INT,Birth Certificate Lewisham,Peoples Services Directorate,Payments Under the Child Care Act 1980,H210
http://statistics.data.gov.uk/id/local-authority/00BF,London Borough of Sutton,25/04/2017,1238424,16.67, REGISTER OFFICE,Birth Certificate LH,Peoples Services Directorate,Payments Under the Child Care Act 1980,H210
http://statistics.data.gov.uk/id/local-authority/00BF,London Borough of Sutton,25/04/2017,1238424,16.67, REGISTER OFFICE,Birth Certificate LH,Peoples Services Directorate,Payments Under the Child Care Act 1980,H210
http://statistics.data.gov.uk/id/local-authority/00BF,London Borough of Sutton,19/04/2017,1238424,16.67, LBSUTTON,Birth Certificate LH,Peoples Services Directorate,Payments Under the Child Care Act 1980,H210
http://statistics.data.gov.uk/id/local-authority/00BF,London Borough of Sutton,18/04/2017,1238424,18.33, WWW.WANDSWORTH.GOV.UK,Birth Certificate LH,Peoples Services Directorate,Payments Under the Child Care Act 1980,H210
http://statistics.data.gov.uk/id/local-authority/00BF,London Borough of Sutton,18/04/2017,1238424,18.33, WWW.WANDSWORTH.GOV.UK,Birth Certificate LH,Peoples Services Directorate,Payments Under the Child Care Act 1980,H210
http://statistics.data.gov.uk/id/local-authority/00BF,London Borough of Sutton,18/04/2017,1238424,18.33, WWW.WANDSWORTH.GOV.UK,Birth Certificate LH,Peoples Services Directorate,Payments Under the Child Care Act 1980,H210
http://statistics.data.gov.uk/id/local-authority/00BF,London Borough of Sutton,11/04/2017,1238424,16.67, LBSUTTON,BIRTH CERTIFICATE FOR LH,Peoples Services Directorate,Payments Under the Child Care Act 1980,H210
http://statistics.data.gov.uk/id/local-authority/00BF,London Borough of Sutton,11/04/2017,1238424,4.72, TRAINLINE,TRAIN TRAVEL,Peoples Services Directorate,Payments Under the Child Care Act 1980,H210
http://statistics.data.gov.uk/id/local-authority/00BF,London Borough of Sutton,11/04/2017,1238424,7.77, TRAINLINE,TRAIN TRAVEL,Peoples Services Directorate,Payments Under the Child Care Act 1980,H210
http://statistics.data.gov.uk/id/local-authority/00BF,London Borough of Sutton,11/04/2017,1238424,14.92, TRAINLINE,TRAIN TRAVEL,Peoples Services Directorate,Payments Under the Child Care Act 1980,H210
http://statistics.data.gov.uk/id/local-authority/00BF,London Borough of Sutton,11/04/2017,1238424,7.77, TRAINLINE,TRAIN TRAVEL,Peoples Services Directorate,Payments Under the Child Care Act 1980,H210
http://statistics.data.gov.uk/id/local-authority/00BF,London Borough of Sutton,06/04/2017,1238424,37.33, TRAINLINE,TRAIN TRAVEL,Peoples Services Directorate,Payments Under the Child Care Act 1980,H210
http://statistics.data.gov.uk/id/local-authority/00BF,London Borough of Sutton,07/04/2017,1238424,15.83, WWW.WIGHTLINK.CO.UK,Portsmouth to Ryde,Peoples Services Directorate,Travelling and Subsistence Allowances,A530
http://statistics.data.gov.uk/id/local-authority/00BF,London Borough of Sutton,06/04/2017,1238424,12.83, WWW.WIGHTLINK.CO.UK,"PORTSMOUTH HARBOUR TO RYDE, ISLE OF WIGHT",Peoples Services Directorate,Travelling and Subsistence Allowances,A530
http://statistics.data.gov.uk/id/local-authority/00BF,London Borough of Sutton,16/05/2017,1238425,-18, RB KEN&CHELSEA,BIRTH CERTIFICATE FOR LAC CHILD,Peoples Services Directorate,Personal Requisites,F106
http://statistics.data.gov.uk/id/local-authority/00BF,London Borough of Sutton,15/05/2017,1238425,29.17, THE HOUSE INC LTD,FLOWERS FOR FOSTER CARERS AS REQUESTED BY HOS,Peoples Services Directorate,Personal Requisites,F106
http://statistics.data.gov.uk/id/local-authority/00BF,London Borough of Sutton,07/05/2017,1238425,27.48, AMAZON UK MARKETPLACE,PURCHASE OF O-HEALTH EQUIPMENT FOR STAFF MEMBER,Peoples Services Directorate,Personal Requisites,F106
http://statistics.data.gov.uk/id/local-authority/00BF,London Borough of Sutton,04/05/2017,1238425,39.6, PEPPERS,FLOWERS FOR FOSTER CARERS AS REQUESTED BY HOS,Peoples Services Directorate,Personal Requisites,F106
http://statistics.data.gov.uk/id/local-authority/00BF,London Borough of Sutton,17/05/2017,1238425,30, THE HOUSE INC LTD,FLOWER FOR FWI80186,Peoples Services Directorate,Personal Requisites,F106
http://statistics.data.gov.uk/id/local-authority/00BF,London Borough of Sutton,20/04/2017,1238424,73.44, TRAINLINE,TRAIN TRAVEL,Peoples Services Directorate,Personal Requisites,F106
http://statistics.data.gov.uk/id/local-authority/00BF,London Borough of Sutton,20/04/2017,1238424,73.4, TRAINLINE,TRAIN TRAVEL,Peoples Services Directorate,Personal Requisites,F106
http://statistics.data.gov.uk/id/local-authority/00BF,London Borough of Sutton,12/05/2017,1238425,8.33, LBSUTTON,BIRTH CERTIFICATE FOR LAC CHILD,Peoples Services Directorate,Personal Requisites,F106
http://statistics.data.gov.uk/id/local-authority/00BF,London Borough of Sutton,05/05/2017,1238425,72.59, TRAINLINE,JOURNEY FOR LAC VISIT,Peoples Services Directorate,Personal Requisites,F106
http://statistics.data.gov.uk/id/local-authority/00BF,London Borough of Sutton,19/04/2017,1238424,29.81, PAPA JONES MS LTD,PIZZA FOR CICC MEETING,Peoples Services Directorate,Refreshments,F155
http://statistics.data.gov.uk/id/local-authority/00BF,London Borough of Sutton,20/04/2017,1238424,99.17, TRAVELODGE,ACCOMMODATION - CONTACT,Peoples Services Directorate,Accommodation - Bed and Breakfast,H202
http://statistics.data.gov.uk/id/local-authority/00BF,London Borough of Sutton,10/05/2017,1238425,148.41, TRAINLINE,TRAIN TICKET,Peoples Services Directorate,Travelling and Subsistence Allowances,A530
http://statistics.data.gov.uk/id/local-authority/00BF,London Borough of Sutton,12/04/2017,1238424,158.56, TRAINLINE,TRAIN TRAVEL,Peoples Services Directorate,Travelling and Subsistence Allowances,A530
http://statistics.data.gov.uk/id/local-authority/00BF,London Borough of Sutton,17/05/2017,1238425,127.86, TRAINLINE,TRAIN TRAVEL,Peoples Services Directorate,Travelling and Subsistence Allowances,A530
http://statistics.data.gov.uk/id/local-authority/00BF,London Borough of Sutton,27/04/2017,1238425,68.77, TRAINLINE,JOURNEY FOR LAC VISIT,Peoples Services Directorate,Training - Course Fees,A520
http://statistics.data.gov.uk/id/local-authority/00BF,London Borough of Sutton,19/05/2017,1238425,29.53, TRAINLINE,TRAIN TRAVEL,Peoples Services Directorate,Travelling and Subsistence Allowances,A530
http://statistics.data.gov.uk/id/local-authority/00BF,London Borough of Sutton,04/04/2017,1238424,92.21, TRAINLINE,TRAIN TRAVEL,Peoples Services Directorate,Travelling and Subsistence Allowances,A530
http://statistics.data.gov.uk/id/local-authority/00BF,London Borough of Sutton,04/04/2017,1238424,44.68, TRAINLINE,TRAIN TRAVEL,Peoples Services Directorate,Travelling and Subsistence Allowances,A530
http://statistics.data.gov.uk/id/local-authority/00BF,London Borough of Sutton,28/03/2017,1238424,30.13, TRAINLINE,TRAIN TRAVEL,Peoples Services Directorate,Travelling and Subsistence Allowances,A530
http://statistics.data.gov.uk/id/local-authority/00BF,London Borough of Sutton,10/04/2017,1238424,-24.3, TRAINLINE,REFUND OF TRAIN FARE STAFF,Peoples Services Directorate,Travelling and Subsistence Allowances,A530
http://statistics.data.gov.uk/id/local-authority/00BF,London Borough of Sutton,12/05/2017,1238425,10.17, LB CROYDON,BIRTH CERTIFICATE FOR LAC CHILD,Peoples Services Directorate,Travelling and Subsistence Allowances,A530
http://statistics.data.gov.uk/id/local-authority/00BF,London Borough of Sutton,12/05/2017,1238425,202.3, TRAINLINE,JOURNEY FOR LAC VISIT,Peoples Services Directorate,Travelling and Subsistence Allowances,A530
http://statistics.data.gov.uk/id/local-authority/00BF,London Borough of Sutton,12/05/2017,1238425,192.52, TRAINLINE,JOURNEY FOR LAC VISIT,Peoples Services Directorate,Travelling and Subsistence Allowances,A530
http://statistics.data.gov.uk/id/local-authority/00BF,London Borough of Sutton,12/05/2017,1238425,120.87, TRAINLINE,JOURNEY FOR LAC VISIT,Peoples Services Directorate,Travelling and Subsistence Allowances,A530
http://statistics.data.gov.uk/id/local-authority/00BF,London Borough of Sutton,12/05/2017,1238425,-108.92, TRAINLINE,JOURNEY FOR LAC VISIT,Peoples Services Directorate,Travelling and Subsistence Allowances,A530
http://statistics.data.gov.uk/id/local-authority/00BF,London Borough of Sutton,04/05/2017,1238425,157.84, TRAINLINE,JOURNEY FOR LAC VISIT,Peoples Services Directorate,Travelling and Subsistence Allowances,A530
http://statistics.data.gov.uk/id/local-authority/00BF,London Borough of Sutton,02/05/2017,1238425,17.64, TRAINLINE,JOURNEY FOR LAC VISIT,Peoples Services Directorate,Travelling and Subsistence Allowances,A530
http://statistics.data.gov.uk/id/local-authority/00BF,London Borough of Sutton,17/05/2017,1238425,-215, TRAINLINE,REFUNDED CANCELLED TRAINLINE 225 - 10 REFUND CHARGE,Peoples Services Directorate,Travelling and Subsistence Allowances,A530
http://statistics.data.gov.uk/id/local-authority/00BF,London Borough of Sutton,12/05/2017,1238425,40.66, LB CROYDON,BIRTH CERTIFICATE FOR LAC CHILD,Peoples Services Directorate,Payments Under the Child Care Act 1980,H210
http://statistics.data.gov.uk/id/local-authority/00BF,London Borough of Sutton,06/04/2017,1238424,240.21, TRAINLINE,TRAIN TRAVEL,Peoples Services Directorate,Payments Under the Child Care Act 1980,H210
http://statistics.data.gov.uk/id/local-authority/00BF,London Borough of Sutton,04/04/2017,1238424,-37.3, TRAINLINE,TRAIN TRAVEL,Peoples Services Directorate,Travelling and Subsistence Allowances,A530
http://statistics.data.gov.uk/id/local-authority/00BF,London Borough of Sutton,31/03/2017,1238424,20, OYSTER BUS AUTOTOP,TOP UP FOR OYSTER STAFF TRAVEL,Peoples Services Directorate,Travelling and Subsistence Allowances,A530
http://statistics.data.gov.uk/id/local-authority/00BF,London Borough of Sutton,21/04/2017,1238424,70.94, TESCO STORE 2934,SFC - BOARD GAMES FOR CONTACTS,Peoples Services Directorate,Materials - General,F100
http://statistics.data.gov.uk/id/local-authority/00BF,London Borough of Sutton,21/04/2017,1238424,44.87, TESCO STORE 2934,PROVISIONS FOR CONTACT,Peoples Services Directorate,Provisions - General,F150
http://statistics.data.gov.uk/id/local-authority/00BF,London Borough of Sutton,16/05/2017,1238425,9.46, ASDA STORES,SUPPLIES FOR CONTACTS,Peoples Services Directorate,Refreshments,F155
http://statistics.data.gov.uk/id/local-authority/00BF,London Borough of Sutton,11/04/2017,1238424,83.33, EB  NATIONAL AMHP LEAD,TWO PLACES FOR NATIONAL AMHP LEADS NETWORK CONFERENCE,Peoples Services Directorate,Training - Course Fees,A520
http://statistics.data.gov.uk/id/local-authority/00BF,London Borough of Sutton,10/04/2017,1238424,27.5, BILD CHARITY IMPREST A,RESOURCES - PSYCHOLOGY BOOK,Peoples Services Directorate,Training - Course Fees,A520
http://statistics.data.gov.uk/id/local-authority/00BF,London Borough of Sutton,28/03/2017,1238424,29.54, PAYPAL  PATIENTHAND,PURCHASE OF PROTECTIVE GLOVES FOR STAFF,Peoples Services Directorate,Health and Safety Equipment,F005
http://statistics.data.gov.uk/id/local-authority/00BF,London Borough of Sutton,28/03/2017,1238424,42.5, PAYPAL  THERAPYWORL,PURCHASE OF HYDRO NECK COLLARS & STRAP FOR CLIENTS,Peoples Services Directorate,Health and Safety Equipment,F005
http://statistics.data.gov.uk/id/local-authority/00BF,London Borough of Sutton,04/04/2017,1238424,49.89, TRAINLINE,TRAIN TRAVEL,Peoples Services Directorate,Travelling and Subsistence Allowances,A530
http://statistics.data.gov.uk/id/local-authority/00BF,London Borough of Sutton,04/04/2017,1238424,49.89, TRAINLINE,TRAIN TRAVEL,Peoples Services Directorate,Travelling and Subsistence Allowances,A530
http://statistics.data.gov.uk/id/local-authority/00BF,London Borough of Sutton,24/05/2017,1238425,245.21, TRAINLINE,TRAIN TRAVEL,Peoples Services Directorate,Travelling and Subsistence Allowances,A530
http://statistics.data.gov.uk/id/local-authority/00BF,London Borough of Sutton,24/05/2017,1238425,288.66, TRAINLINE,TRAIN TRAVEL,Peoples Services Directorate,Travelling and Subsistence Allowances,A530
http://statistics.data.gov.uk/id/local-authority/00BF,London Borough of Sutton,11/05/2017,1238425,231.03, TRAINLINE,TRAIN TRAVEL,Peoples Services Directorate,Travelling and Subsistence Allowances,A530
http://statistics.data.gov.uk/id/local-authority/00BF,London Borough of Sutton,02/05/2017,1238425,192.52, TRAINLINE,JOURNEY FOR LAC VISIT,Peoples Services Directorate,Travelling and Subsistence Allowances,A530
http://statistics.data.gov.uk/id/local-authority/00BF,London Borough of Sutton,24/05/2017,1238425,43.33, TRAVELODGE,ACCOMMODATION MC FAMILY,Peoples Services Directorate,Accommodation - Bed and Breakfast,H202
http://statistics.data.gov.uk/id/local-authority/00BF,London Borough of Sutton,17/05/2017,1238425,231.03, TRAINLINE,TRAIN TRAVEL,Peoples Services Directorate,C.C.A Travel & Subsistance,H212
http://statistics.data.gov.uk/id/local-authority/00BF,London Borough of Sutton,17/05/2017,1238425,231.03, TRAINLINE,TRAIN TRAVEL,Peoples Services Directorate,C.C.A Travel & Subsistance,H212
http://statistics.data.gov.uk/id/local-authority/00BF,London Borough of Sutton,09/05/2017,1238425,93.84, TRAINLINE,TRAIN TRAVEL,Peoples Services Directorate,Travelling and Subsistence Allowances,A530
http://statistics.data.gov.uk/id/local-authority/00BF,London Borough of Sutton,29/03/2017,1238424,48.86, TRAINLINE,TRAIN TRAVEL,Peoples Services Directorate,Travelling and Subsistence Allowances,A530
http://statistics.data.gov.uk/id/local-authority/00BF,London Borough of Sutton,27/03/2017,1238424,58.34, TRAINLINE,TRAIN TRAVEL,Peoples Services Directorate,Travelling and Subsistence Allowances,A530
http://statistics.data.gov.uk/id/local-authority/00BF,London Borough of Sutton,28/04/2017,1238425,50, NEW SOUTHERN RAILW,OYSTERCARD TOP UP,"Environment, Housing & Regeneration Directorate",General Office Expenses,F235
http://statistics.data.gov.uk/id/local-authority/00BF,London Borough of Sutton,22/05/2017,1238425,239.95, LCN.COM LTD,RENEWAL OF WEBHOSTING OF OPPORTUNITY SUTTON.ORG VIA LNC WEBHOSTING,"Environment, Housing & Regeneration Directorate",Fees - Other,F299
http://statistics.data.gov.uk/id/local-authority/00BF,London Borough of Sutton,09/05/2017,1238425,171.25, GOOGLE  ADWS8780462868,BALANCING ENTRY AMOUNTCOST OF GOOGLE ADVERTISING FOR RECRUITMENT OF 2 REGENERATION ROLES IN SUTTON,"Environment, Housing & Regeneration Directorate",Staff Advertising,A500
http://statistics.data.gov.uk/id/local-authority/00BF,London Borough of Sutton,09/04/2017,1238424,200, GOOGLE  ADWS8780462868,BALANCING ENTRY AMOUNT (100%),"Environment, Housing & Regeneration Directorate",Staff Advertising,A500
http://statistics.data.gov.uk/id/local-authority/00BF,London Borough of Sutton,28/03/2017,1238424,50, GOOGLE  ADWS8780462868,GOOGLE AD FOR SL (100%),"Environment, Housing & Regeneration Directorate",Staff Advertising,A500
http://statistics.data.gov.uk/id/local-authority/00BF,London Borough of Sutton,01/04/2017,1238424,2.5, WH SMITH,HIGHWAY CODE,"Environment, Housing & Regeneration Directorate",Books of Reference/Statute,F222
http://statistics.data.gov.uk/id/local-authority/00BF,London Borough of Sutton,06/05/2017,1238425,335.15, AMAZON UK RETAIL AMAZO,MEMORY CARDS FOR P&D MACHINES,"Environment, Housing & Regeneration Directorate",General Office Expenses,F235
http://statistics.data.gov.uk/id/local-authority/00BF,London Borough of Sutton,27/03/2017,1238424,32.47, MAPLIN SUTTON SM1,SD CARDS FOR P&D MACHINES,"Environment, Housing & Regeneration Directorate",Purchase of IT Equipment,F380
http://statistics.data.gov.uk/id/local-authority/00BF,London Borough of Sutton,11/04/2017,1238424,15, MELVILLE CARS LTD,STAFF TRANSPORT COSTS,Peoples Services Directorate,Travelling and Subsistence Allowances,A530
http://statistics.data.gov.uk/id/local-authority/00BF,London Borough of Sutton,25/05/2017,1238425,30, WWW.SOLOPRESS.COM,INFORMATION LEAFLETS,Peoples Services Directorate,IT Equipment - Repair and Maintenance,F382
http://statistics.data.gov.uk/id/local-authority/00BF,London Borough of Sutton,10/05/2017,1238425,38, WWW.SOLOPRESS.COM,INFORMATION LEAFLETS,Peoples Services Directorate,IT Equipment - Repair and Maintenance,F382
http://statistics.data.gov.uk/id/local-authority/00BF,London Borough of Sutton,23/05/2017,1238425,100.5, EAST MIDLANDS TRAINS,TRAVEL FOR TRAINING EVENT,Peoples Services Directorate,Travelling and Subsistence Allowances,A530
http://statistics.data.gov.uk/id/local-authority/00BF,London Borough of Sutton,12/04/2017,1238424,18.83, SJASUPLIES,CONSERVATION AND PACKING MATERIALS FOR LITTLE HOLLAND HOUSE,Peoples Services Directorate,Records and Casettes,F007
http://statistics.data.gov.uk/id/local-authority/00BF,London Borough of Sutton,06/04/2017,1238424,36.07, WWW.HANDOVER.CO.UK,CONSERVATION AND PACKING EQUIPMENT FOR LITTLE HOLLAND HOUSE,Peoples Services Directorate,Records and Casettes,F007
http://statistics.data.gov.uk/id/local-authority/00BF,London Borough of Sutton,06/04/2017,1238424,58.71, WWW.UKPACKAGING.COM,CONSERVATION AND PACKING EQUIPMENT FOR LITTLE HOLLAND HOUSE,Peoples Services Directorate,Records and Casettes,F007
http://statistics.data.gov.uk/id/local-authority/00BF,London Borough of Sutton,03/04/2017,1238424,192.82, WWW.GO-ELECTRICAL.CO.U,CONSERVATION AND PACKING EQUIPMENT FOR LITTLE HOLLAND HOUSE,Peoples Services Directorate,Records and Casettes,F007
http://statistics.data.gov.uk/id/local-authority/00BF,London Borough of Sutton,25/05/2017,1238425,19.99, WWW.JERSEYPLANTSDIRECT,2 Pre-planted baskets,Resources Directorate,General Office Expenses,F235
http://statistics.data.gov.uk/id/local-authority/00BF,London Borough of Sutton,21/05/2017,1238425,12.38, TESCO STORE 3235,REFRESHMENTS,Resources Directorate,General Office Expenses,F235
http://statistics.data.gov.uk/id/local-authority/00BF,London Borough of Sutton,07/04/2017,1238424,20, NEW SOUTHERN RAILW,OYSTER TOP UP,Resources Directorate,General Office Expenses,F235
http://statistics.data.gov.uk/id/local-authority/00BF,London Borough of Sutton,24/05/2017,1238425,78.49, TRAINLINE,TRAIN TRAVEL,Chief Executive's Directorate,Training - Course Fees,A520
http://statistics.data.gov.uk/id/local-authority/00BF,London Borough of Sutton,21/05/2017,1238425,20, OYSTER AUTOTOPUP,"	TEAM OYSTER TOPUP",Chief Executive's Directorate,Travelling and Subsistence Allowances,A530
http://statistics.data.gov.uk/id/local-authority/00BF,London Borough of Sutton,14/05/2017,1238425,20, OYSTER AUTOTOPUP,TEAM OYSTER TOPUP,Chief Executive's Directorate,Travelling and Subsistence Allowances,A530
http://statistics.data.gov.uk/id/local-authority/00BF,London Borough of Sutton,09/05/2017,1238425,79.56, TRAINLINE,TEAM OYSTER TOPUP,Chief Executive's Directorate,Travelling and Subsistence Allowances,A530
http://statistics.data.gov.uk/id/local-authority/00BF,London Borough of Sutton,30/04/2017,1238425,20, OYSTER AUTOTOPUP,CONFERENCE TRAVEL,Chief Executive's Directorate,Travelling and Subsistence Allowances,A530
http://statistics.data.gov.uk/id/local-authority/00BF,London Borough of Sutton,26/04/2017,1238425,20, OYSTER AUTOTOPUP,TEAM OYSTER CARD TOP UP,Chief Executive's Directorate,Travelling and Subsistence Allowances,A530
http://statistics.data.gov.uk/id/local-authority/00BF,London Borough of Sutton,21/04/2017,1238424,20, OYSTER AUTOTOPUP,TEAM OYSTER CARD TOP UP,Chief Executive's Directorate,Travelling and Subsistence Allowances,A530
http://statistics.data.gov.uk/id/local-authority/00BF,London Borough of Sutton,13/04/2017,1238424,20, OYSTER BUS AUTOTOP,TEAM OYSTER CARD TOP UP,Chief Executive's Directorate,Travelling and Subsistence Allowances,A530
http://statistics.data.gov.uk/id/local-authority/00BF,London Borough of Sutton,07/04/2017,1238424,20, OYSTER AUTOTOPUP,TEAM OYSTER CARD TOP UP,Chief Executive's Directorate,Travelling and Subsistence Allowances,A530
http://statistics.data.gov.uk/id/local-authority/00BF,London Borough of Sutton,03/05/2017,1238425,223.17, WWW.ETCVENUES.CO.UK,ROOM HIRE FOR CMT AWAY DAY,Chief Executive's Directorate,Fees - Room Hire,F290
http://statistics.data.gov.uk/id/local-authority/00BF,London Borough of Sutton,10/04/2017,1238424,9.44, MAILCHIMP,FOREIGN EXCHANGE FEE,Chief Executive's Directorate,Fees - Computer Software,F384
http://statistics.data.gov.uk/id/local-authority/00BF,London Borough of Sutton,21/04/2017,1238424,80, WWW.MOSAICEVENTS.CO.UK,MEMBERSHIP COSTS,Chief Executive's Directorate,Subscriptions - General,F450
http://statistics.data.gov.uk/id/local-authority/00BF,London Borough of Sutton,12/05/2017,1238425,8.02, MAILCHIMP    MONTHLY,FEES FOR WEB HOSTING,Chief Executive's Directorate,Fees - Computer Software,F384
http://statistics.data.gov.uk/id/local-authority/00BF,London Borough of Sutton,11/05/2017,1238425,291.52, MAILCHIMP    MONTHLY,WEB HOSTING,Chief Executive's Directorate,Fees - Computer Software,F384
http://statistics.data.gov.uk/id/local-authority/00BF,London Borough of Sutton,09/04/2017,1238424,343.1, MAILCHIMP,WEB HOSTING,Chief Executive's Directorate,Fees - Computer Software,F384
http://statistics.data.gov.uk/id/local-authority/00BF,London Borough of Sutton,17/04/2017,1238424,-247, TRAINLINE,TRAINLINE REFUND,Resources Directorate,Travelling and Subsistence Allowances,A530
http://statistics.data.gov.uk/id/local-authority/00BF,London Borough of Sutton,05/05/2017,1238425,59.6, PEPPERS,FLOWERS FOR FOSTER CARERS AS REQUESTED BY HOS,Resources Directorate,Domestic Equipment,F004
http://statistics.data.gov.uk/id/local-authority/00BF,London Borough of Sutton,22/05/2017,1238425,500, HOLIDAY INNS,ROOM BOOKING FOR STAFF AWARDS,Resources Directorate,Fees - Room Hire,F290
http://statistics.data.gov.uk/id/local-authority/00BF,London Borough of Sutton,18/05/2017,1238425,510, ARENA EVENT SERVICES G,SPLIT - CHAIR HIRE FOR ANNUAL COUNCIL,Resources Directorate,Special,D535
http://statistics.data.gov.uk/id/local-authority/00BF,London Borough of Sutton,18/05/2017,1238425,50, ARENA EVENT SERVICES G,SPLIT - CHAIR HIRE FOR ANNUAL COUNCIL,Resources Directorate,Special,D535
http://statistics.data.gov.uk/id/local-authority/00BF,London Borough of Sutton,19/05/2017,1238425,19.95, DAWSONS,PLAQUE AND ENGRAVING FOR 2017 TO 2018 MAYOR,Resources Directorate,Materials - General,F100
http://statistics.data.gov.uk/id/local-authority/00BF,London Borough of Sutton,03/05/2017,1238425,105, CHRISTINES FASH IN FLO,3 X PRESENTATION HAND TIED BOUQUETS AT 35.00 EACH.  THESE WERE BEING PRESENTED AT THE ANNUAL COUNCIL MAYOR MAKING ON THE 22ND MAY 2017.,Resources Directorate,Materials - General,F100
http://statistics.data.gov.uk/id/local-authority/00BF,London Borough of Sutton,10/05/2017,1238425,587.34, MAJESTIC WINE,"PURCHASES OF WINE, ICE, LOAN OF WINE GLASSES AND BAGS OF ICE FOR MAYOR MAKING ON 22.05.17",Resources Directorate,Hospitality (VAT not Recoverable),F325
http://statistics.data.gov.uk/id/local-authority/00BF,London Borough of Sutton,27/03/2017,1238424,249.92, AMAZON UK MARKETPLACE,10 X CHARGING STATIONS FOR BECC,"Environment, Housing & Regeneration Directorate",Purchase of IT Equipment,F380
http://statistics.data.gov.uk/id/local-authority/00BF,London Borough of Sutton,19/04/2017,1238424,152.49, TRAINLINE,TRAINLINE TICKETS,Resources Directorate,Conferences - Fees,A525
http://statistics.data.gov.uk/id/local-authority/00BF,London Borough of Sutton,13/04/2017,1238424,296, PREMIER INN,Accommodation,Resources Directorate,Conferences - Fees,A525
http://statistics.data.gov.uk/id/local-authority/00BF,London Borough of Sutton,21/05/2017,1238425,16.67, OYSTER AUTOTOPUP,OYSTER CARD TOP UP - STRATEGIC DIRECTOR RESOURCES,Resources Directorate,Travelling and Subsistence Allowances,A530
http://statistics.data.gov.uk/id/local-authority/00BF,London Borough of Sutton,17/05/2017,1238425,16.67, OYSTER AUTOTOPUP,OYSTER CARD TOP UP - STRATEGIC DIRECTOR RESOURCES,Resources Directorate,Travelling and Subsistence Allowances,A530
http://statistics.data.gov.uk/id/local-authority/00BF,London Borough of Sutton,04/05/2017,1238425,16.67, OYSTER AUTOTOPUP,OYSTER CARD TOP UP - STRATEGIC DIRECTOR RESOURCES,Resources Directorate,Travelling and Subsistence Allowances,A530
http://statistics.data.gov.uk/id/local-authority/00BF,London Borough of Sutton,26/04/2017,1238425,16.67, OYSTER AUTOTOPUP,OYSTER CARD TOP UP - STRATEGIC DIRECTOR RESOURCES,Resources Directorate,Travelling and Subsistence Allowances,A530
http://statistics.data.gov.uk/id/local-authority/00BF,London Borough of Sutton,24/04/2017,1238424,77.47, TRAINLINE,STRATEGIC DIRECTOR RTN TRAIN TICKET TO MANCHESTER FOR CIPFA CONFERENCE,Resources Directorate,Travelling and Subsistence Allowances,A530
http://statistics.data.gov.uk/id/local-authority/00BF,London Borough of Sutton,29/03/2017,1238424,16.67, OYSTER AUTOTOPUP,OYSTER CARD TOP UP - STRATEGIC DIRECTOR RESOURCES,Resources Directorate,Travelling and Subsistence Allowances,A530
http://statistics.data.gov.uk/id/local-authority/00BF,London Borough of Sutton,11/05/2017,1238425,206.14, TRAINLINE,TRAVEL COSTS FOR TRAINING/MEETING,Chief Executive's Directorate,General Office Expenses,F235
http://statistics.data.gov.uk/id/local-authority/00BF,London Borough of Sutton,10/05/2017,1238425,238, NEW SOUTHERN RAILW,TRAIN JOURNEY TO UNIT 4 USER GROUP BIRMINGHAM X 2,Resources Directorate,Travelling and Subsistence Allowances,A530
http://statistics.data.gov.uk/id/local-authority/00BF,London Borough of Sutton,18/05/2017,1238425,144.98, ARGOS RETAIL GROUP,FRIDGE FREEZER CL&G,Resources Directorate,Grants,F473
http://statistics.data.gov.uk/id/local-authority/00BF,London Borough of Sutton,02/05/2017,1238425,"4,750.00", CREDIT CONTROL,PURCHASE OF FOOD VOUCHERS FROM MORRISONS,Resources Directorate,Grants,F473
http://statistics.data.gov.uk/id/local-authority/00BF,London Borough of Sutton,02/05/2017,1238425,"4,750.00", CREDIT CONTROL,PURCHASE OF FOOD VOUCHERS FROM MORRISONS,Resources Directorate,Grants,F473
http://statistics.data.gov.uk/id/local-authority/00BF,London Borough of Sutton,23/05/2017,1238425,289.11, ARGOS RETAIL GROUP,PURCHASE OF COOKER & SINGLE DIVAN FOR CRISIS GRANT,Resources Directorate,Grants,F473
http://statistics.data.gov.uk/id/local-authority/00BF,London Borough of Sutton,17/05/2017,1238425,291.65, ARGOS RETAIL GROUP,PURCHASE OF FRIDGE FREEZER & COOKER FOR CRISIS GRANT,Resources Directorate,Grants,F473
http://statistics.data.gov.uk/id/local-authority/00BF,London Borough of Sutton,10/05/2017,1238425,222.44, WWW.ARGOS.CO.UK,PURCHASE OF FRIDGE FREEZER & SINGLE DIVAN FOR CRISIS GRANT,Resources Directorate,Grants,F473
http://statistics.data.gov.uk/id/local-authority/00BF,London Borough of Sutton,06/04/2017,1238424,249.98, WWW.ARGOS.CO.UK,CLG PURCHASE FRIDGE FREEZER & ELECTRIC COOKER 06-04-2017,Resources Directorate,Grants,F473
http://statistics.data.gov.uk/id/local-authority/00BF,London Borough of Sutton,24/04/2017,1238424,69.99, ARGOS RETAIL GROUP,PURCHASE OF SINGLE BED FRAME FOR CRISIS GRANT,Resources Directorate,Grants,F473
http://statistics.data.gov.uk/id/local-authority/00BF,London Borough of Sutton,28/03/2017,1238424,139.99, WWW.ARGOS.CO.UK,PURCHASE OF ELECTRIC COOKER FOR CRISIS GRANT,Resources Directorate,Grants,F473
http://statistics.data.gov.uk/id/local-authority/00BF,London Borough of Sutton,25/05/2017,1238425,"7,320.00", HMCOURTS-SERVICE.G,PURCHASE OF SUMMONSES,Resources Directorate,Fees - Other,F299
http://statistics.data.gov.uk/id/local-authority/00BF,London Borough of Sutton,22/04/2017,1238424,40, OYSTER AUTOTOPUP,OYSTER AUTOTOPUP,Resources Directorate,Travelling and Subsistence Allowances,A530
http://statistics.data.gov.uk/id/local-authority/00BF,London Borough of Sutton,19/05/2017,1238425,40, OYSTER BUS AUTOTOP,OYSTER AUTOTOPUP,Resources Directorate,Travelling and Subsistence Allowances,A530
http://statistics.data.gov.uk/id/local-authority/00BF,London Borough of Sutton,06/04/2017,1238424,200.83, WWW.IRRV.ORG.UK,IRRV PURCHASE OF 'COUNCIL TAX LAW & PRACTICE',Resources Directorate,Books of Reference/Statute,F222
http://statistics.data.gov.uk/id/local-authority/00BF,London Borough of Sutton,06/04/2017,1238424,370, WWW.GOV.UK,PURCHASE OF 37 X PROBATE CERTS,Resources Directorate,General Office Expenses,F235
http://statistics.data.gov.uk/id/local-authority/00BF,London Borough of Sutton,23/05/2017,1238425,40, OYSTER AUTOTOPUP,OYSTER AUTOTOPUP,Resources Directorate,Travelling and Subsistence Allowances,A530
http://statistics.data.gov.uk/id/local-authority/00BF,London Borough of Sutton,20/05/2017,1238425,40, OYSTER AUTOTOPUP,OYSTER AUTOTOPUP,Resources Directorate,Travelling and Subsistence Allowances,A530
http://statistics.data.gov.uk/id/local-authority/00BF,London Borough of Sutton,26/04/2017,1238425,40, OYSTER AUTOTOPUP,OYSTER AUTOTOPUP,Resources Directorate,Travelling and Subsistence Allowances,A530
http://statistics.data.gov.uk/id/local-authority/00BF,London Borough of Sutton,18/05/2017,1238425,67, SHELTER,PURCHASE OF 'HELP WITH HOUSING COSTS' BOOKS,Resources Directorate,Books of Reference/Statute,F222
http://statistics.data.gov.uk/id/local-authority/00BF,London Borough of Sutton,10/04/2017,1238424,133.32, WWW.ARGOS.CO.UK,PURCHASE OF FRIDGE/FREEZER FOR CRISIS LOAN AND GRANTS,Resources Directorate,Grants,F473
http://statistics.data.gov.uk/id/local-authority/00BF,London Borough of Sutton,24/05/2017,1238425,114, WWW.CII.CO.UK,CII ORDINARY MEMBERSHIP FEE,Resources Directorate,Training - Course Fees,A520
http://statistics.data.gov.uk/id/local-authority/00BF,London Borough of Sutton,24/05/2017,1238425,106, WWW.CII.CO.UK,CII EXAM FEE,Resources Directorate,Training - Course Fees,A520
http://statistics.data.gov.uk/id/local-authority/00BF,London Borough of Sutton,24/05/2017,1238425,235, WWW.CII.CO.UK,"CII EXAM FEE, STUDY TEXT AND POSTAGE",Resources Directorate,Training - Course Fees,A520
http://statistics.data.gov.uk/id/local-authority/00BF,London Borough of Sutton,24/05/2017,1238425,36.06, TRAINLINE,TRAIN TRAVEL,Peoples Services Directorate,Travelling and Subsistence Allowances,A530
http://statistics.data.gov.uk/id/local-authority/00BF,London Borough of Sutton,28/03/2017,1238424,41.48, TRAINLINE,TRAIN TRAVEL,Peoples Services Directorate,Travelling and Subsistence Allowances,A530
http://statistics.data.gov.uk/id/local-authority/00BF,London Borough of Sutton,12/05/2017,1238425,-77.8, TRAINLINE,TRAIN TICKET REFUND (MINUS 10 PROCESSING CHARGE),Peoples Services Directorate,Travelling and Subsistence Allowances,A530
http://statistics.data.gov.uk/id/local-authority/00BF,London Borough of Sutton,11/05/2017,1238425,91.09, TRAINLINE,TRAIN TRAVEL,Peoples Services Directorate,Travelling and Subsistence Allowances,A530
http://statistics.data.gov.uk/id/local-authority/00BF,London Borough of Sutton,11/05/2017,1238425,153, TRAINLINE,TRAIN TRAVEL,Peoples Services Directorate,Travelling and Subsistence Allowances,A530
http://statistics.data.gov.uk/id/local-authority/00BF,London Borough of Sutton,21/04/2017,1238424,821.75, TRAVELODGE,Accommodation,Peoples Services Directorate,Accommodation - Bed and Breakfast,H202
http://statistics.data.gov.uk/id/local-authority/00BF,London Borough of Sutton,27/03/2017,1238424,97.51, TRAINLINE,TRAIN TRAVEL,Peoples Services Directorate,Travelling and Subsistence Allowances,A530
http://statistics.data.gov.uk/id/local-authority/00BF,London Borough of Sutton,22/05/2017,1238425,14.74, TRAINLINE,TRAIN TRAVEL,Peoples Services Directorate,Travelling and Subsistence Allowances,A530
http://statistics.data.gov.uk/id/local-authority/00BF,London Borough of Sutton,08/05/2017,1238425,300, WM MORRISONS,FOOD VOUCHERS - MORRISONS,Peoples Services Directorate,Provisions - General,F150
http://statistics.data.gov.uk/id/local-authority/00BF,London Borough of Sutton,18/05/2017,1238425,224.4, SHAWS & SONS LIMITED,PAYMENT FOR MENTAL HEALTH WARRANTS,Peoples Services Directorate,Stationery,F220
http://statistics.data.gov.uk/id/local-authority/00BF,London Borough of Sutton,17/05/2017,1238425,26.06, TRAINLINE,TRAIN TRAVEL,Peoples Services Directorate,C.C.A Travel & Subsistance,H212
http://statistics.data.gov.uk/id/local-authority/00BF,London Borough of Sutton,27/04/2017,1238425,9.17, PEACOCK STORES LTD,CLIENT CLOTHES,Peoples Services Directorate,Provisions - General,F150
http://statistics.data.gov.uk/id/local-authority/00BF,London Borough of Sutton,27/04/2017,1238425,10.82, SHOE ZONE LTD,CLOTHING FOR CLIENT FWI 318250,Peoples Services Directorate,Provisions - General,F150
http://statistics.data.gov.uk/id/local-authority/00BF,London Borough of Sutton,06/04/2017,1238424,100, WM MORRISONS,MORRISON FOOD VOUCHERS,Peoples Services Directorate,Provisions - General,F150
http://statistics.data.gov.uk/id/local-authority/00BF,London Borough of Sutton,07/04/2017,1238424,24, WM MORRISONS,SANDWICHES FOR ADMIRAL NURSES CARER EVENT,Peoples Services Directorate,Training - Course Fees,A520
http://statistics.data.gov.uk/id/local-authority/00BF,London Borough of Sutton,08/05/2017,1238425,16, WM MORRISONS,PANEL MEETING REFRESHMENTS,Peoples Services Directorate,Miscellaneous Expenses,F620
